[Event "69th RUS-ch Women Superfinal 2019"]
[Site "Izhevsk"]
[Date "2019.08.16"]
[Round "6.1"]
[White "Kashlinskaya, Alina"]
[Black "Goryachkina, Aleksandra"]
[Result "0-1"]
[ECO "C07"]
[WhiteElo "2492"]
[BlackElo "2564"]
[Annotator "ChessBase"]
[PlyCount "64"]
[EventDate "2019.08.10"]
[EventType "tourn"]
[EventCountry "RUS"]
[SourceTitle "playchess.com"]
[Source "ChessBase"]
[SourceQuality "1"]
[TimeControl "40/5400+30:1800+30"]

1. e4 {[%emt 0:00:00]} e6 {[%emt 0:00:00]} 2. d4 {[%emt 0:00:00]} d5 {[%emt 0:00:00]} 3. Nd2 {[%emt 0:00:00]} c5 {[%emt 0:00:00]} 4. exd5 {[%emt 0:00:03]} Qxd5 {[%emt 0:00:03]} 5. dxc5 {[%emt 0:00:15]} Qxc5 {[%emt 0:00:55]} 6. Ngf3 {[%emt 0:00:36]} Nf6 {[%emt 0:01:17]} 7. Bd3 {[%emt 0:01:36]} Nbd7 {[%emt 0:01:31]} 8. Qe2 {[%emt 0:02:32]} Qc7 {[%emt 0:01:55]} 9. O-O {[%emt 0:06:10]} Nc5 {[%emt 0:04:32]} 10. b3 {[%emt 0:09:11]} Nxd3 {[%emt 0:07:27]} 11. Qxd3 {[%emt 0:00:23]} Be7 {[%emt 0:01:38]} 12. Bb2 {[%emt 0:00:53]} O-O {[%emt 0:01:22]} 13. c4 {[%emt 0:02:07]} b6 {[%emt 0:06:25]} 14. Rad1 {[%emt 0:06:51]} Rd8 {[%emt 0:02:26]} 15. Qe2 {[%emt 0:01:12]} Bb7 {[%emt 0:00:41]} 16. Ne5 {[%emt 0:01:34]} h6 {[%emt 0:04:02]} 17. Rfe1 {[%emt 0:02:02]} Rd6 {[%emt 0:05:06]} 18. Ndf3 {[%emt 0:11:16]} Rxd1 {[%emt 0:03:27]} 19. Rxd1 {[%emt 0:01:07]} Rd8 {[%emt 0:00:19]} 20. Nd4 {[%emt 0:11:09]} a6 {[%emt 0:05:33]} 21. f3 {[%emt 0:08:53]} Bd6 {[%emt 0:06:17]} 22. Nc2 {[%emt 0:01:08]} Nd7 {[%emt 0:02:50]} 23. Ne1 {[%emt 0:06:28]} b5 {[%emt 0:08:31]} 24. cxb5 {[%emt 0:03:19]} axb5 {[%emt 0:03:21]} 25. Nxd7 {[%emt 0:00:21]} Rxd7 {[%emt 0:01:03]} 26. Kh1 {[%emt 0:00:10]} b4 {[%emt 0:03:37]} 27. Nc2 {[%emt 0:00:58]} Qd8 {[%emt 0:10:30]} 28. Qb5 {[%emt 0:03:30]} Qh4 {[%emt 0:04:02]} 29. h3 {[%emt 0:05:23]} Bxf3 {[%emt 0:02:07]} 30. Kg1 {[%emt 0:05:12]} Bh2+ {[%emt 0:03:37]} 31. Kxh2 {[%emt 0:00:16]} Qf4+ {[%emt 0:00:26]} 32. g3 {[%emt 0:00:08]} Rd2+ {[%emt 0:00:13]} 0-1

[Event "69th RUS-ch Women Superfinal 2019"]
[Site "Izhevsk"]
[Date "2019.08.16"]
[Round "6.3"]
[White "Potapova, Margarita"]
[Black "Shafigullina, Zarina"]
[Result "1/2-1/2"]
[ECO "E15"]
[WhiteElo "2292"]
[BlackElo "2246"]
[Annotator "NA"]
[PlyCount "219"]
[EventDate "2019.08.10"]
[EventType "tourn"]
[EventCountry "RUS"]
[SourceTitle "playchess.com"]
[Source "ChessBase"]
[SourceQuality "1"]
[TimeControl "40/5400+30:1800+30"]

1. d4 {[%emt 0:00:00]} Nf6 {[%emt 0:00:00]} 2. c4 {[%emt 0:00:00]} e6 {[%emt 0:00:00]} 3. Nf3 {[%emt 0:00:00]} b6 {[%emt 0:00:00]} 4. g3 {[%emt 0:00:02]} Ba6 {[%emt 0:02:05]} 5. b3 {[%emt 0:00:41]} Bb4+ {[%emt 0:00:09]} 6. Bd2 {[%emt 0:00:09]} Be7 {[%emt 0:00:07]} 7. Nc3 {[%emt 0:00:34]} Bb7 {[%emt 0:02:55]} 8. Bg2 {[%emt 0:01:17]} Ne4 {[%emt 0:00:53]} 9. O-O {[%emt 0:11:37]} Nxc3 {[%emt 0:09:22]} 10. Bxc3 {[%emt 0:00:06]} Be4 {[%emt 0:00:19]} 11. d5 {[%emt 0:25:53]} Bf6 {[%emt 0:00:41]} 12. Bxf6 {[%emt 0:03:44]} Qxf6 {[%emt 0:00:08]} 13. Qd4 {[%emt 0:00:58]} Qxd4 {[%emt 0:02:42]} 14. Nxd4 {[%emt 0:00:29]} Bxg2 {[%emt 0:01:02]} 15. Kxg2 {[%emt 0:00:04]} a6 {[%emt 0:06:24]} 16. e4 {[%emt 0:01:59]} c5 {[%emt 0:02:05]} 17. Nc2 {[%emt 0:03:34]} Ke7 {[%emt 0:04:13]} 18. f4 $14 {[%emt 0:01:24]} Rd8 {[%emt 0:02:12]} 19. Ne3 {[%emt 0:07:13]} Ra7 {[%emt 0:03:47]} 20. Rf2 {[%emt 0:03:26]} Rb7 {[%emt 0:00:57]} 21. Raf1 {[%emt 0:01:17]} f6 {[%emt 0:09:31]} 22. g4 {[%emt 0:01:07]} b5 {[%emt 0:03:22]} 23. e5 {[%emt 0:00:41]} bxc4 {[%emt 0:06:05]} 24. bxc4 {[%emt 0:01:13]} Rf8 {[%emt 0:08:47]} 25. f5 {[%emt 0:11:47]} fxe5 {[%emt 0:01:27]} 26. g5 {[%emt 0:00:25]} exf5 {[%emt 0:15:10]} 27. Nxf5+ {[%emt 0:01:44]} Kd8 {[%emt 0:00:08]} 28. Nxg7 {[%emt 0:01:29]} Rxf2+ {[%emt 0:00:56]} 29. Rxf2 {[%emt 0:00:04]} Rb6 {[%emt 0:02:24]} 30. h4 {[%emt 0:01:26]} Rg6 {[%emt 0:06:29]} 31. Rf7 {[%emt 0:02:31]} h6 {[%emt 0:02:58]} 32. d6 {[%emt 0:00:49]} Rxd6 {[%emt 0:01:02]} 33. Rf8+ {[%emt 0:00:07]} Ke7 {[%emt 0:00:23]} 34. Rxb8 {[%emt 0:00:42]} Rd2+ {[%emt 0:05:05]} 35. Kf3 {[%emt 0:00:25]} hxg5 {[%emt 0:00:40]} 36. h5 {[%emt 0:04:54]} Kf6 {[%emt 0:01:41]} 37. h6 {[%emt 0:00:34]} Kg6 {[%emt 0:00:58]} 38. Rb6+ {[%emt 0:00:19]} d6 {[%emt 0:00:39]} 39. Rxa6 {[%emt 0:00:36]} Rd4 {[%emt 0:00:44]} 40. Ke3 {[%emt 0:00:00]} g4 {[%emt 0:00:00]} 41. Ne8 {[%emt 0:01:57]} Kxh6 {[%emt 0:02:22]} 42. Nxd6 {[%emt 0:02:24]} Kh5 {[%emt 0:03:26]} 43. Nf7 {[%emt 0:02:21]} g3 {[%emt 0:00:10]} 44. Rh6+ {[%emt 0:00:27]} Kg4 {[%emt 0:00:07]} 45. Nxe5+ {[%emt 0:00:32]} Kg5 {[%emt 0:02:41]} 46. Rh8 {[%emt 0:01:14]} Kf6 {[%emt 0:00:39]} 47. Nf3 {[%emt 0:01:57]} Rxc4 {[%emt 0:00:23]} 48. Rh1 {[%emt 0:01:18]} Ra4 {[%emt 0:04:41]} 49. Ra1 {[%emt 0:00:29]} Kf5 {[%emt 0:00:11]} 50. a3 {[%emt 0:00:55]} Re4+ {[%emt 0:00:05]} 51. Kd2 {[%emt 0:00:50]} Kg4 {[%emt 0:00:13]} 52. Ng1 {[%emt 0:00:31]} g2 {[%emt 0:01:33]} 53. a4 {[%emt 0:00:57]} Rf4 {[%emt 0:11:18]} 54. a5 {[%emt 0:14:35]} Rf2+ {[%emt 0:06:27]} 55. Ne2 {[%emt 0:02:31]} Kf3 {[%emt 0:01:08]} 56. Ra3+ {[%emt 0:00:11]} Ke4 {[%emt 0:00:08]} 57. Rg3 {[%emt 0:01:04]} Rf1 {[%emt 0:03:18]} 58. a6 {[%emt 0:10:56]} Ra1 {[%emt 0:00:06]} 59. Nc3+ {[%emt 0:04:46]} Kf5 {[%emt 0:00:11]} 60. Rxg2 {[%emt 0:00:16]} Rxa6 {[%emt 0:00:05]} 61. Kd3 {[%emt 0:00:40]} c4+ {[%emt 0:00:32]} 62. Kxc4 {[%emt 0:00:06]} Rc6+ {[%emt 0:00:40]} 63. Kd4 {[%emt 0:00:14]} Rd6+ {[%emt 0:00:49]} 64. Nd5 {[%emt 0:00:10]} Rh6 {[%emt 0:00:40]} 65. Rf2+ {[%emt 0:00:36]} Kg4 {[%emt 0:01:02]} 66. Nf6+ {[%emt 0:00:25]} Kg3 {[%emt 0:00:36]} 67. Ne4+ {[%emt 0:00:05]} Kg4 {[%emt 0:00:10]} 68. Ke5 {[%emt 0:02:37]} Rh5+ {[%emt 0:00:09]} 69. Ke6 {[%emt 0:00:25]} Ra5 {[%emt 0:00:13]} 70. Nf6+ {[%emt 0:00:28]} Kg3 {[%emt 0:00:11]} 71. Rb2 {[%emt 0:00:12]} Ra3 {[%emt 0:01:00]} 72. Ke5 {[%emt 0:00:20]} Kf3 {[%emt 0:00:19]} 73. Nd5 {[%emt 0:00:12]} Rd3 {[%emt 0:01:04]} 74. Rb8 {[%emt 0:00:23]} Ra3 {[%emt 0:00:49]} 75. Rf8+ {[%emt 0:00:08]} Kg4 {[%emt 0:00:44]} 76. Nf6+ {[%emt 0:01:01]} Kf3 {[%emt 0:00:15]} 77. Nd5+ {[%emt 0:00:43]} Kg4 {[%emt 0:00:08]} 78. Rf1 {[%emt 0:01:30]} Ra5 {[%emt 0:00:21]} 79. Rf4+ {[%emt 0:00:42]} Kg3 {[%emt 0:00:54]} 80. Rb4 {[%emt 0:00:10]} Kf3 {[%emt 0:00:24]} 81. Kd4 {[%emt 0:00:33]} Ra8 {[%emt 0:00:19]} 82. Ke5 {[%emt 0:01:50]} Re8+ {[%emt 0:00:11]} 83. Kf5 {[%emt 0:00:05]} Rf8+ {[%emt 0:00:16]} 84. Nf6 {[%emt 0:00:05]} Ke3 {[%emt 0:00:15]} 85. Ke5 {[%emt 0:00:04]} Kd3 {[%emt 0:00:39]} 86. Rd4+ {[%emt 0:00:13]} Kc2 {[%emt 0:00:24]} 87. Ne4 {[%emt 0:00:09]} Kb3 {[%emt 0:00:34]} 88. Rd7 {[%emt 0:00:28]} Rh8 {[%emt 0:01:42]} 89. Kd4 {[%emt 0:00:11]} Rh4 {[%emt 0:00:12]} 90. Rc7 {[%emt 0:00:43]} Kb2 {[%emt 0:00:37]} 91. Rb7+ {[%emt 0:00:37]} Kc2 {[%emt 0:00:04]} 92. Rb8 {[%emt 0:00:06]} Rg4 {[%emt 0:00:57]} 93. Rc8+ {[%emt 0:00:31]} Kb3 {[%emt 0:00:14]} 94. Kd3 {[%emt 0:00:05]} Kb4 {[%emt 0:00:57]} 95. Rb8+ {[%emt 0:00:03]} Ka5 {[%emt 0:00:09]} 96. Kd4 {[%emt 0:00:34]} Rh4 {[%emt 0:00:35]} 97. Rb1 {[%emt 0:00:07]} Ka4 {[%emt 0:00:54]} 98. Kd5 {[%emt 0:00:32]} Ka3 {[%emt 0:00:25]} 99. Nc5 {[%emt 0:00:47]} Rg4 {[%emt 0:00:24]} 100. Nd3 {[%emt 0:02:35]} Rh4 {[%emt 0:00:39]} 101. Ne5 {[%emt 0:00:25]} Rh5 {[%emt 0:00:37]} 102. Kd4 {[%emt 0:00:15]} Rh4+ {[%emt 0:00:31]} 103. Kc3 {[%emt 0:00:32]} Ka4 {[%emt 0:00:08]} 104. Nc6 {[%emt 0:00:45]} Rh3+ {[%emt 0:00:21]} 105. Kc4 {[%emt 0:00:12]} Rh4+ {[%emt 0:00:30]} 106. Nd4 {[%emt 0:00:05]} Ka5 {[%emt 0:00:15]} 107. Rb2 {[%emt 0:01:50]} Rg4 {[%emt 0:00:38]} 108. Kc5 {[%emt 0:00:44]} Rg5+ {[%emt 0:00:21]} 109. Kd6 {[%emt 0:00:12]} Rh5 {[%emt 0:01:06]} 110. Rb5+ {[%emt 0:01:17]} 1/2-1/2

[Event "69th RUS-ch Women Superfinal 2019"]
[Site "Izhevsk"]
[Date "2019.08.16"]
[Round "6.5"]
[White "Charochkina, Daria"]
[Black "Pogonina, Natalija"]
[Result "0-1"]
[ECO "D35"]
[WhiteElo "2338"]
[BlackElo "2457"]
[Annotator "ChessBase"]
[PlyCount "98"]
[EventDate "2019.08.10"]
[EventType "tourn"]
[EventCountry "RUS"]
[SourceTitle "playchess.com"]
[Source "ChessBase"]
[SourceQuality "1"]
[TimeControl "40/5400+30:1800+30"]

1. c4 {[%emt 0:00:00]} e6 {[%emt 0:00:00]} 2. Nc3 {[%emt 0:00:00]} d5 {[%emt 0:00:00]} 3. d4 {[%emt 0:00:02]} Nf6 {[%emt 0:00:00]} 4. cxd5 {[%emt 0:00:08]} exd5 {[%emt 0:00:00]} 5. Bg5 {[%emt 0:00:06]} c6 {[%emt 0:00:06]} 6. e3 {[%emt 0:00:28]} Be7 {[%emt 0:00:11]} 7. Bd3 {[%emt 0:00:29]} Nbd7 {[%emt 0:01:21]} 8. h3 {[%emt 0:00:38]} O-O {[%emt 0:02:33]} 9. Qc2 {[%emt 0:00:20]} Re8 {[%emt 0:00:21]} 10. Bf4 {[%emt 0:00:06]} c5 {[%emt 0:09:03]} 11. Nf3 {[%emt 0:03:52]} a6 {[%emt 0:01:06]} 12. a4 {[%emt 0:08:13]} cxd4 {[%emt 0:01:46]} 13. Nxd4 {[%emt 0:00:06]} Nc5 {[%emt 0:00:19]} 14. O-O {[%emt 0:15:30]} Nxd3 {[%emt 0:06:53]} 15. Qxd3 {[%emt 0:00:04]} Be6 {[%emt 0:00:13]} 16. Rfd1 {[%emt 0:03:16]} Rc8 {[%emt 0:09:21]} 17. Nce2 {[%emt 0:28:24]} Ne4 {[%emt 0:13:46]} 18. Qb3 {[%emt 0:03:11]} Nc5 {[%emt 0:07:17]} 19. Qa2 {[%emt 0:00:50]} Qb6 {[%emt 0:01:33]} 20. Nc3 {[%emt 0:07:19]} Red8 {[%emt 0:02:42]} 21. a5 {[%emt 0:00:11]} Qb4 {[%emt 0:02:49]} 22. Nxe6 {[%emt 0:10:35]} fxe6 {[%emt 0:00:37]} 23. Rd4 {[%emt 0:00:03]} Qb3 {[%emt 0:00:33]} 24. Qb1 {[%emt 0:00:04]} Nd7 {[%emt 0:02:42]} 25. e4 {[%emt 0:01:09]} Bf6 {[%emt 0:13:24]} 26. e5 {[%emt 0:00:03]} Be7 {[%emt 0:03:50]} 27. Bg3 {[%emt 0:00:31]} Rc4 {[%emt 0:01:37]} 28. Rxc4 {[%emt 0:04:59]} Qxc4 {[%emt 0:01:18]} 29. Ra4 {[%emt 0:00:04]} Qc6 {[%emt 0:01:16]} 30. Rg4 {[%emt 0:02:04]} Nf8 {[%emt 0:05:10]} 31. Qd3 {[%emt 0:00:12]} Rc8 {[%emt 0:00:40]} 32. h4 {[%emt 0:00:41]} b5 {[%emt 0:03:33]} 33. h5 {[%emt 0:06:42]} b4 {[%emt 0:00:33]} 34. Ne2 {[%emt 0:00:09]} Qc2 {[%emt 0:01:04]} 35. Qxa6 {[%emt 0:00:35]} Rc6 {[%emt 0:07:18]} 36. Qb5 {[%emt 0:00:11]} Rc5 {[%emt 0:00:04]} 37. Qe8 {[%emt 0:01:11]} Qxe2 {[%emt 0:02:29]} 38. Rf4 {[%emt 0:03:53]} Rc1+ {[%emt 0:00:04]} 39. Kh2 {[%emt 0:00:02]} h6 {[%emt 0:00:55]} 40. Qxe7 {[%emt 0:00:00]} Qxh5+ {[%emt 0:00:00]} 41. Bh4 {[%emt 0:21:07]} Ng6 {[%emt 0:05:57]} 42. Qf7+ {[%emt 0:00:09]} Kh7 {[%emt 0:01:33]} 43. Rxb4 {[%emt 0:00:12]} d4 {[%emt 0:08:58]} 44. g3 {[%emt 0:03:43]} Qd1 {[%emt 0:00:41]} 45. Qb7 {[%emt 0:00:37]} Qg1+ {[%emt 0:00:53]} 46. Kh3 {[%emt 0:00:06]} Qxf2 {[%emt 0:00:14]} 47. Qe4 {[%emt 0:04:32]} Re1 {[%emt 0:04:26]} 48. Qg2 {[%emt 0:05:09]} Qf5+ {[%emt 0:03:26]} 49. g4 {[%emt 0:00:40]} Qd3+ {[%emt 0:00:18]} 0-1

[Event "69th RUS-ch Women Superfinal 2019"]
[Site "Izhevsk"]
[Date "2019.08.17"]
[Round "7.1"]
[White "Kosteniuk, Alexandra"]
[Black "Kashlinskaya, Alina"]
[Result "0-1"]
[ECO "C11"]
[WhiteElo "2517"]
[BlackElo "2492"]
[Annotator "ChessBase"]
[PlyCount "120"]
[EventDate "2019.08.10"]
[EventType "tourn"]
[EventCountry "RUS"]
[SourceTitle "playchess.com"]
[Source "ChessBase"]
[SourceQuality "1"]
[TimeControl "40/5400+30:1800+30"]

1. e4 {[%emt 0:00:00]} e6 {[%emt 0:00:00]} 2. d4 {[%emt 0:00:00]} d5 {[%emt 0:00:00]} 3. Nc3 {[%emt 0:00:00]} Nf6 {[%emt 0:00:00]} 4. e5 {[%emt 0:00:00]} Nfd7 {[%emt 0:00:03]} 5. f4 {[%emt 0:00:00]} c5 {[%emt 0:00:11]} 6. Nf3 {[%emt 0:00:02]} Nc6 {[%emt 0:00:08]} 7. Be3 {[%emt 0:00:45]} Qb6 {[%emt 0:00:18]} 8. Na4 {[%emt 0:00:23]} Qa5+ {[%emt 0:00:14]} 9. c3 {[%emt 0:00:06]} b6 {[%emt 0:00:11]} 10. Bd2 {[%emt 0:05:44]} c4 {[%emt 0:00:21]} 11. b3 {[%emt 0:05:00]} b5 {[%emt 0:03:13]} 12. Nb2 {[%emt 0:00:48]} Rb8 {[%emt 0:08:42]} 13. Kf2 {[%emt 0:11:18]} Ba3 {[%emt 0:11:11]} 14. Qc2 {[%emt 0:02:04]} f6 {[%emt 0:04:05]} 15. g3 {[%emt 0:09:36]} Qb6 {[%emt 0:18:01]} 16. bxc4 {[%emt 0:13:47]} fxe5 {[%emt 0:10:43]} 17. cxb5 {[%emt 0:08:51]} Bxb2 {[%emt 0:06:28]} 18. Qxb2 {[%emt 0:02:56]} e4 {[%emt 0:00:25]} 19. Qa3 {[%emt 0:07:22]} Ne7 {[%emt 0:03:03]} 20. Ne1 {[%emt 0:01:39]} Nf6 {[%emt 0:07:22]} 21. Nc2 {[%emt 0:00:45]} Nf5 {[%emt 0:00:16]} 22. Be2 {[%emt 0:00:58]} Bd7 {[%emt 0:00:44]} 23. Rab1 {[%emt 0:03:56]} h5 {[%emt 0:00:46]} 24. Qb4 {[%emt 0:03:17]} Kf7 {[%emt 0:03:32]} 25. a4 {[%emt 0:00:14]} Qc7 {[%emt 0:01:30]} 26. Qc5 {[%emt 0:02:15]} e3+ {[%emt 0:00:24]} 27. Kf3 {[%emt 0:01:41]} Qxc5 {[%emt 0:00:19]} 28. dxc5 {[%emt 0:00:02]} exd2 {[%emt 0:00:06]} 29. Bd3 {[%emt 0:00:03]} Ne4 {[%emt 0:05:36]} 30. Bxe4 {[%emt 0:00:38]} dxe4+ {[%emt 0:00:02]} 31. Ke2 {[%emt 0:03:20]} Rbc8 {[%emt 0:02:18]} 32. c6 {[%emt 0:00:09]} Bxc6 {[%emt 0:00:11]} 33. bxc6 {[%emt 0:00:04]} Rxc6 {[%emt 0:00:06]} 34. Kxd2 {[%emt 0:01:50]} Rd8+ {[%emt 0:00:07]} 35. Nd4 {[%emt 0:00:06]} Nxd4 {[%emt 0:00:12]} 36. cxd4 {[%emt 0:00:03]} Rxd4+ {[%emt 0:00:10]} 37. Ke3 {[%emt 0:00:03]} Rxa4 {[%emt 0:00:14]} 38. Rhc1 {[%emt 0:00:06]} Rxc1 {[%emt 0:07:24]} 39. Rxc1 {[%emt 0:00:02]} Kf6 {[%emt 0:00:16]} 40. Rc7 {[%emt 0:00:00]} g6 {[%emt 0:00:00]} 41. Rd7 {[%emt 0:14:43]} a5 {[%emt 0:09:47]} 42. Ra7 {[%emt 0:00:38]} e5 {[%emt 0:04:37]} 43. h4 {[%emt 0:03:49]} Kf5 {[%emt 0:02:39]} 44. Rf7+ {[%emt 0:00:15]} Ke6 {[%emt 0:00:05]} 45. Ra7 {[%emt 0:03:13]} exf4+ {[%emt 0:04:10]} 46. gxf4 {[%emt 0:00:20]} Kd5 {[%emt 0:03:47]} 47. Rd7+ {[%emt 0:00:22]} Kc5 {[%emt 0:01:10]} 48. Rc7+ {[%emt 0:06:15]} Kb6 {[%emt 0:00:33]} 49. Rg7 {[%emt 0:01:49]} Ra3+ {[%emt 0:00:13]} 50. Kd4 {[%emt 0:00:25]} Rd3+ {[%emt 0:00:31]} 51. Kxe4 {[%emt 0:03:43]} Rd6 {[%emt 0:03:01]} 52. Rf7 {[%emt 0:05:15]} a4 {[%emt 0:01:35]} 53. Rf8 {[%emt 0:00:23]} Rc6 {[%emt 0:07:05]} 54. Kd4 {[%emt 0:02:30]} Kb5 {[%emt 0:02:04]} 55. f5 {[%emt 0:08:19]} a3 {[%emt 0:00:17]} 56. Rb8+ {[%emt 0:01:48]} Rb6 {[%emt 0:00:47]} 57. Ra8 {[%emt 0:00:05]} Ra6 {[%emt 0:01:01]} 58. Rb8+ {[%emt 0:00:03]} Kc6 {[%emt 0:01:42]} 59. Rc8+ {[%emt 0:03:07]} Kd6 {[%emt 0:00:47]} 60. Re8 {[%emt 0:02:26]} Ra4+ {[%emt 0:00:20]} 0-1

[Event "69th RUS-ch Women Superfinal 2019"]
[Site "Izhevsk"]
[Date "2019.08.17"]
[Round "7.2"]
[White "Pogonina, Natalija"]
[Black "Shuvalova, Polina"]
[Result "1-0"]
[ECO "E06"]
[WhiteElo "2457"]
[BlackElo "2418"]
[Annotator "ChessBase"]
[PlyCount "75"]
[EventDate "2019.08.10"]
[EventType "tourn"]
[EventCountry "RUS"]
[SourceTitle "playchess.com"]
[Source "ChessBase"]
[SourceQuality "1"]
[TimeControl "40/5400+30:1800+30"]

1. d4 {[%emt 0:00:00]} Nf6 {[%emt 0:00:00]} 2. c4 {[%emt 0:00:00]} e6 {[%emt 0:00:00]} 3. g3 {[%emt 0:00:00]} d5 {[%emt 0:00:04]} 4. Nf3 {[%emt 0:00:15]} Be7 {[%emt 0:00:09]} 5. Bg2 {[%emt 0:00:13]} O-O {[%emt 0:00:05]} 6. Qc2 {[%emt 0:00:55]} a6 {[%emt 0:06:26]} 7. Ne5 {[%emt 0:10:12]} c5 {[%emt 0:02:59]} 8. dxc5 {[%emt 0:04:04]} Qa5+ {[%emt 0:02:43]} 9. Bd2 {[%emt 0:11:19]} Qxc5 {[%emt 0:00:33]} 10. Nd3 {[%emt 0:04:39]} Qc7 {[%emt 0:08:10]} 11. O-O {[%emt 0:02:56]} Bd7 {[%emt 0:02:01]} 12. Na3 {[%emt 0:06:26]} Nc6 {[%emt 0:12:46]} 13. cxd5 {[%emt 0:01:27]} exd5 {[%emt 0:00:27]} 14. Nf4 {[%emt 0:01:34]} Qe5 {[%emt 0:08:16]} 15. Qb3 {[%emt 0:07:27]} Rfd8 {[%emt 0:08:28]} 16. Rad1 {[%emt 0:03:06]} Bf5 {[%emt 0:06:43]} 17. Qxb7 {[%emt 0:15:00]} Qd6 {[%emt 0:02:43]} 18. Rc1 {[%emt 0:16:29]} Bd7 {[%emt 0:01:09]} 19. Qb3 {[%emt 0:00:18]} Rab8 {[%emt 0:01:09]} 20. Qd3 {[%emt 0:01:43]} Rxb2 {[%emt 0:04:13]} 21. Nc2 {[%emt 0:00:54]} Rxa2 {[%emt 0:14:55]} 22. Qb3 {[%emt 0:01:43]} Rxc2 {[%emt 0:01:57]} 23. Qxc2 {[%emt 0:00:04]} g5 {[%emt 0:02:02]} 24. Nd3 {[%emt 0:00:42]} Nd4 {[%emt 0:01:34]} 25. Qd1 {[%emt 0:00:07]} Ne4 {[%emt 0:06:30]} 26. Bb4 {[%emt 0:02:18]} Qf6 {[%emt 0:01:28]} 27. Bxe7 {[%emt 0:01:03]} Qxe7 {[%emt 0:00:03]} 28. e3 {[%emt 0:01:35]} Nf5 {[%emt 0:01:58]} 29. Qc2 {[%emt 0:01:47]} Bb5 {[%emt 0:00:34]} 30. Rfd1 {[%emt 0:01:38]} h5 {[%emt 0:02:38]} 31. Nc5 {[%emt 0:02:56]} Nxc5 {[%emt 0:02:06]} 32. Qxc5 {[%emt 0:00:05]} Qxc5 {[%emt 0:00:39]} 33. Rxc5 {[%emt 0:00:05]} Ne7 {[%emt 0:00:15]} 34. Bxd5 {[%emt 0:01:48]} Kg7 {[%emt 0:00:45]} 35. Bf3 {[%emt 0:00:54]} Rxd1+ {[%emt 0:00:10]} 36. Bxd1 {[%emt 0:00:04]} Kg6 {[%emt 0:00:06]} 37. f4 {[%emt 0:01:09]} f6 {[%emt 0:00:49]} 38. Bc2+ {[%emt 0:00:32]} 1-0

[Event "69th RUS-ch Women Superfinal 2019"]
[Site "Izhevsk"]
[Date "2019.08.17"]
[Round "7.3"]
[White "Gunina, Valentina"]
[Black "Charochkina, Daria"]
[Result "1-0"]
[ECO "D45"]
[WhiteElo "2497"]
[BlackElo "2338"]
[Annotator "ChessBase"]
[PlyCount "171"]
[EventDate "2019.08.10"]
[EventType "tourn"]
[EventCountry "RUS"]
[SourceTitle "playchess.com"]
[Source "ChessBase"]
[SourceQuality "1"]
[TimeControl "40/5400+30:1800+30"]

1. d4 {[%emt 0:00:00]} d5 {[%emt 0:00:00]} 2. c4 {[%emt 0:00:00]} c6 {[%emt 0:00:00]} 3. Nc3 {[%emt 0:00:00]} Nf6 {[%emt 0:00:00]} 4. e3 {[%emt 0:00:00]} e6 {[%emt 0:00:20]} 5. Nf3 {[%emt 0:00:00]} Nbd7 {[%emt 0:00:12]} 6. Qc2 {[%emt 0:00:00]} Bd6 {[%emt 0:00:28]} 7. g4 {[%emt 0:00:05]} dxc4 {[%emt 0:00:12]} 8. g5 {[%emt 0:01:26]} Nd5 {[%emt 0:00:17]} 9. Bxc4 {[%emt 0:00:04]} e5 {[%emt 0:00:26]} 10. Bd2 {[%emt 0:00:10]} exd4 {[%emt 0:00:47]} 11. Qe4+ {[%emt 0:01:05]} Ne7 {[%emt 0:01:29]} 12. Qxd4 {[%emt 0:02:35]} Nf5 {[%emt 0:03:23]} 13. Qe4+ {[%emt 0:00:39]} Ne7 {[%emt 0:00:39]} 14. Qc2 {[%emt 0:21:40]} Nb6 {[%emt 0:15:26]} 15. Be2 {[%emt 0:01:52]} Bf5 {[%emt 0:13:41]} 16. e4 {[%emt 0:03:05]} Bg4 {[%emt 0:00:23]} 17. O-O-O {[%emt 0:01:06]} Nc4 {[%emt 0:17:15]} 18. e5 {[%emt 0:15:39]} Nxe5 {[%emt 0:05:35]} 19. Nxe5 {[%emt 0:03:12]} Bxe2 {[%emt 0:00:06]} 20. Nxe2 {[%emt 0:00:02]} Bxe5 {[%emt 0:00:07]} 21. f4 {[%emt 0:02:25]} Bd6 {[%emt 0:00:40]} 22. Bc3 {[%emt 0:03:16]} O-O {[%emt 0:01:59]} 23. Ng3 {[%emt 0:01:54]} Bxf4+ {[%emt 0:04:19]} 24. Kb1 {[%emt 0:00:21]} Nd5 {[%emt 0:00:10]} 25. Bxg7 {[%emt 0:02:21]} Re8 {[%emt 0:02:03]} 26. Nh5 {[%emt 0:04:30]} Qxg5 {[%emt 0:04:58]} 27. Rhg1 {[%emt 0:05:13]} Qxh5 {[%emt 0:00:18]} 28. Rxd5 {[%emt 0:06:34]} Qg6 {[%emt 0:12:22]} 29. Rxg6 {[%emt 0:01:23]} hxg6 {[%emt 0:00:05]} 30. Rd7 {[%emt 0:00:43]} Kxg7 {[%emt 0:00:27]} 31. a3 {[%emt 0:05:21]} Be5 {[%emt 0:06:30]} 32. Qf2 {[%emt 0:06:03]} Bf6 {[%emt 0:00:21]} 33. Rxb7 {[%emt 0:02:50]} Re7 {[%emt 0:02:48]} 34. Rxe7 {[%emt 0:00:48]} Bxe7 {[%emt 0:00:04]} 35. Qf3 {[%emt 0:00:43]} Rh8 {[%emt 0:03:50]} 36. Qxc6 {[%emt 0:03:50]} Rxh2 {[%emt 0:00:08]} 37. Qc7 {[%emt 0:00:03]} Rh1+ {[%emt 0:01:46]} 38. Kc2 {[%emt 0:00:12]} Bf6 {[%emt 0:00:26]} 39. b4 {[%emt 0:00:22]} Bd4 {[%emt 0:02:18]} 40. Qf4 {[%emt 0:00:00]} Bb6 {[%emt 0:00:00]} 41. a4 {[%emt 0:04:26]} Rh5 {[%emt 0:06:45]} 42. Qg3 {[%emt 0:02:15]} Rf5 {[%emt 0:04:00]} 43. Qc3+ {[%emt 0:03:52]} Kh7 {[%emt 0:02:30]} 44. a5 {[%emt 0:01:18]} Bf2 {[%emt 0:00:15]} 45. Kd1 {[%emt 0:00:35]} Kg8 {[%emt 0:03:32]} 46. Ke2 {[%emt 0:01:02]} Bg1 {[%emt 0:01:26]} 47. Qg3 {[%emt 0:02:50]} Bd4 {[%emt 0:00:57]} 48. Qh4 {[%emt 0:02:15]} Bf6 {[%emt 0:03:01]} 49. Qc4 {[%emt 0:00:50]} Kg7 {[%emt 0:00:13]} 50. Kd3 {[%emt 0:02:01]} Re5 {[%emt 0:02:36]} 51. Qc6 {[%emt 0:06:37]} Re6 {[%emt 0:01:13]} 52. Qb7 {[%emt 0:01:34]} a6 {[%emt 0:03:00]} 53. Kc4 {[%emt 0:08:50]} Bg5 {[%emt 0:00:25]} 54. Qd5 {[%emt 0:02:15]} Be3 {[%emt 0:00:34]} 55. Kd3 {[%emt 0:00:24]} Ba7 {[%emt 0:02:09]} 56. Qb7 {[%emt 0:00:25]} Bf2 {[%emt 0:01:45]} 57. Qc7 {[%emt 0:01:12]} Bg1 {[%emt 0:00:45]} 58. Qg3 {[%emt 0:01:01]} Ba7 {[%emt 0:00:28]} 59. Qg2 {[%emt 0:00:54]} Rd6+ {[%emt 0:00:39]} 60. Kc4 {[%emt 0:01:18]} Re6 {[%emt 0:00:16]} 61. Qb2+ {[%emt 0:00:58]} Kg8 {[%emt 0:00:15]} 62. Qh2 {[%emt 0:01:22]} Kg7 {[%emt 0:01:59]} 63. Qg2 {[%emt 0:00:08]} Be3 {[%emt 0:00:32]} 64. b5 {[%emt 0:01:11]} axb5+ {[%emt 0:00:05]} 65. Kxb5 {[%emt 0:00:03]} Bd4 {[%emt 0:01:13]} 66. Kc4 {[%emt 0:00:06]} Be3 {[%emt 0:00:53]} 67. Kd3 {[%emt 0:00:10]} Ba7 {[%emt 0:00:16]} 68. Qb7 {[%emt 0:00:22]} Bg1 {[%emt 0:00:38]} 69. Qb8 {[%emt 0:00:48]} Bc5 {[%emt 0:00:49]} 70. Qc7 {[%emt 0:00:23]} Bg1 {[%emt 0:00:26]} 71. Qc3+ {[%emt 0:00:35]} Kg8 {[%emt 0:00:19]} 72. Qa1 {[%emt 0:01:06]} Ba7 {[%emt 0:00:38]} 73. Qc1 {[%emt 0:00:18]} Kg7 {[%emt 0:01:06]} 74. Qc7 {[%emt 0:00:34]} Bg1 {[%emt 0:00:28]} 75. Qb7 {[%emt 0:00:56]} Rd6+ {[%emt 0:00:42]} 76. Ke2 {[%emt 0:00:11]} Re6+ {[%emt 0:00:09]} 77. Kf3 {[%emt 0:00:06]} Bd4 {[%emt 0:00:56]} 78. Qc7 {[%emt 0:00:54]} Bg1 {[%emt 0:00:49]} 79. Qc3+ {[%emt 0:00:14]} Kg8 {[%emt 0:00:24]} 80. Qc4 {[%emt 0:00:36]} Ba7 {[%emt 0:00:30]} 81. Qc7 {[%emt 0:00:11]} Bg1 {[%emt 0:00:33]} 82. a6 {[%emt 0:00:31]} Bb6 {[%emt 0:01:22]} 83. Qb7 {[%emt 0:00:24]} Kg7 {[%emt 0:00:12]} 84. Kf4 {[%emt 0:00:33]} Be3+ {[%emt 0:00:15]} 85. Kg4 {[%emt 0:00:14]} Re4+ {[%emt 0:01:26]} 86. Qxe4 {[%emt 0:00:19]} 1-0